Cogmind - Beta 16.1 @@@ ROGUE MODE // 2026.02.21 @ 23:48:51 Player: MN-51T Result: Destroyed by X-82 Rainmaker with Heavy Flak Cannon Performance ------------- Evolutions (6) 3000 Regions Visited (16) 3200 Robots Destroyed (30) 150 Value Destroyed (1371) 1371 Prototype IDs (41) 820 Alien Tech Used (0) 0 Bonus (3755) 3755 TOTAL SCORE: 12296 Bonus ------- Pacifist 1125 Follower Combat Kills 630 Entered Garrisons 200 Used RIF Installer 500 Entered DSFs 1000 Aligned with FarCom 300 Cogmind --------- Core Integrity 0/1150 Matter 122/300 Energy 99/100 System Corruption 1% Temperature Cool (0) Movement Core (50) Location -4/DSF Parts ------- > --- POWER (2) -------- (None) > --- PROPULSION (8) --- (None) > --- UTILITY (7) ------ (None) > --- WEAPON (2) ------- (None) > --- INVENTORY (5) ---- Improved Fusion Compressor Improved Fusion Compressor Long-range Proton Cannon HERF Cannon Improved Datajack Peak State ------------ > --- POWER ------------ Light Antimatter Reactor Light Antimatter Reactor > --- PROPULSION ------- Armored Leg Armored Leg Myomer Leg Myomer Leg Advanced VSS Leg Advanced VSS Leg Advanced VSS Leg Advanced VSS Leg > --- UTILITY ---------- Advanced Power Amplifier Advanced Power Amplifier Advanced Power Amplifier Advanced Power Amplifier Improved Medium Armor Plating Improved Powered Armor Graphene Brace > --- WEAPON ----------- Long-range Proton Cannon > --- INVENTORY -------- Light Antimatter Reactor Light Antimatter Reactor Improved Fusion Compressor Improved Fusion Compressor Improved Datajack [Rating: 120] Favorites ----------- Power Micro Fission Core Engine Light Deuterium Engine Power Core Micro Fission Core Reactor Light Antimatter Reactor Propulsion VTOL Module Treads Improved Heavy Siege Treads Leg Advanced VSS Leg Flight Unit VTOL Module Utility Hacking Suite Device Kinecellerator Storage Medium Storage Unit Processor Enhanced Optical Array Hackware Hacking Suite Protection Improved Propulsion Shielding Weapon Datajack Energy Gun Improved Medium Laser Energy Cannon Phase Cannon Ballistic Gun Hypervelocity Coil Gun Ballistic Cannon Mass Driver Launcher Fusion Bomb Launcher Special Weapon Remote Datajack Piercing Weapon Heavy Pick Special Melee Weapon Datajack Build | -11 -10 -10 -10 -9 -8 -7 -7 -6 -6 -5 -5 -5 -4 -4 -4 -4 ------- Run | Yrd Mat Min Exi Min Mat Fac Sto Fac DSF Fac Upp Upp Fac Gar Fac DSF Slots Evolved 12 | . . . . . 4 2 . 2 . 2 . . 2 . . . Power 1 | . . . . . 1 . . . . . . . . . . . Propulsion 6 | . . . . . 2 . . . . 2 . . 2 . . . Utility 5 | . . . . . 1 2 . 2 . . . . . . . . Weapon . | . . . . . . . . . . . . . . . . . Parts Attached 95 | 6 8 1 . 1 1 13 . 3 1 21 3 . 7 . . 30 Power 13 | 1 . 1 . . . 2 . 1 . 2 . . . . . 6 Engine 5 | 1 . 1 . . . 2 . 1 . . . . . . . . Core 2 | . . . . . . . . . . 2 . . . . . . Reactor 6 | . . . . . . . . . . . . . . . . 6 Propulsion 28 | 2 2 . . . . 3 . . . 3 2 . 4 . . 12 Treads 4 | . . . . . . . . . . . 2 . . . . 2 Leg 12 | 2 . . . . . . . . . . . . . . . 10 Wheel . | . . . . . . . . . . . . . . . . . Hover . | . . . . . . . . . . . . . . . . . Flight 12 | . 2 . . . . 3 . . . 3 . . 4 . . . Utility 34 | 1 4 . . 1 1 6 . 1 . 10 . . 3 . . 7 Device 20 | . . . . 1 . 4 . 1 . 7 . . 2 . . 5 Storage 3 | 1 . . . . . . . . . 2 . . . . . . Processor 5 | . 3 . . . . 1 . . . 1 . . . . . . Hackware 2 | . . . . . . 1 . . . . . . 1 . . . Protection 4 | . 1 . . . 1 . . . . . . . . . . 2 Artifact . | . . . . . . . . . . . . . . . . . Weapon 20 | 2 2 . . . . 2 . 1 1 6 1 . . . . 5 Energy Gun 4 | . 1 . . . . . . 1 . 1 . . . . . 1 Energy Cannon 3 | . . . . . . . . . . . . . . . . 3 Ballistic Gun 3 | 2 . . . . . . . . . 1 . . . . . . Ballistic Cannon 2 | . . . . . . . . . . 1 1 . . . . . Launcher 2 | . . . . . . . . . 1 . . . . . . 1 Special Weapon 1 | . . . . . . 1 . . . . . . . . . . Impact Weapon . | . . . . . . . . . . . . . . . . . Slashing Weapon . | . . . . . . . . . . . . . . . . . Piercing Weapon 2 | . . . . . . . . . . 2 . . . . . . Special Melee Weapon 3 | . 1 . . . . 1 . . . 1 . . . . . . Unidentified Prototypes 4 | . 1 . . . . . . . . 3 . . . . . . Parts Lost 31 | . . . . . 2 . 2 . 3 . . . 7 . . 17 Power 5 | . . . . . 1 . . . 1 . . . . . . 3 Propulsion 13 | . . . . . . . 1 . . . . . 6 . . 6 Utility 9 | . . . . . . . 1 . 1 . . . 1 . . 6 Weapon 4 | . . . . . 1 . . . 1 . . . . . . 2 Highest Loss Streak 10 | . . . . . 1 . 2 . 2 . . . 6 . . 10 To Critical Strikes . | . . . . . . . . . . . . . . . . . Average Backups 5 | 2 5 5 4 2 2 1 2 . 1 6 10 10 8 5 5 4 Power . | . . . . . . . 1 . . . . . . . . 2 Propulsion 1 | 1 2 2 1 1 1 1 1 . 1 1 2 2 . . . . Utility 1 | . 1 1 1 . . . . . . 2 3 3 3 3 3 . Weapon . | . 1 1 . . . . . . . . 2 3 2 1 1 . Tool/Special . | . . . . . . . . . . . . . . . . . Unused Backups 22 | . 7 1 3 1 . 1 . . . 2 1 . 2 . . 4 Power 3 | . 1 . . . . . . . . . . . . . . 2 Propulsion 6 | . 4 . 2 . . . . . . . . . . . . . Utility 6 | . 1 . . 1 . 1 . . . 1 1 . 1 . . . Weapon 6 | . 1 1 1 . . . . . . 1 . . . . . 2 Tool/Special 1 | . . . . . . . . . . . . . 1 . . . Average Slot Usage (%) 72 | . 90 100 100 93 47 69 75 63 60 77 82 82 77 . . 47 Engine 5 | . 14 14 14 14 7 7 7 12 13 1 . . . . . . Core 4 | . . . . . . . . . . 9 11 11 9 . . . Leg 2 | . 13 . . . . . . . . . . . . . . 21 Flight 17 | . 14 28 28 28 18 19 22 6 6 16 16 17 23 . . . Device 15 | . . . . 6 9 21 22 18 20 24 17 17 15 . . 6 Storage 3 | . 6 . . . . . . . . 5 11 11 9 . . . Processor 3 | . 7 14 14 7 . 1 . . . 1 5 5 4 . . . Hackware 3 | . . . . . . 4 7 6 6 5 5 5 3 . . . Protection 4 | . 5 14 14 14 11 7 7 6 2 . . . . . . 4 Energy Gun 1 | . 3 14 14 7 . . . 4 5 . . . . . . . Ballistic Gun 1 | . 16 . . . . . . . . . 3 5 4 . . . Ballistic Cannon 1 | . . . . . . . . . . 3 4 5 . . . . Piercing Weapon 1 | . . . . . . . . . . 3 1 . 3 . . . Special Melee Weapon 3 | . 7 14 14 14 1 5 . . . 2 . . 1 . . . Peak Build Rating 120 | 6 13 15 15 15 13 44 34 67 67 99 100 100 110 2 2 120 Average Rating 55 | 4 9 13 13 13 10 27 33 62 64 90 97 100 99 2 2 66 On Entrance 32 | . 6 13 13 15 11 12 34 27 67 52 99 100 100 2 2 2 Avg Prop Armor Cover (%) 23 | . . . . . . . . . . . 6 . . . . 26 Naked Turns 211 | . . . . . . . . . . . . . 25 170 2 14 Heaviest Build 65 | 12 12 8 8 8 7 17 17 42 42 56 58 58 58 . . 65 Greatest Support 162 | 20 20 8 8 8 8 50 20 56 56 65 70 59 73 3 3 162 Greatest Overweight (x) . | . . . . . . . . . . . . . . . . . Average Overweight (x) . | . . . . . . . . . . . . . . . . . Largest Inventory Capacity 10 | 8 8 5 5 5 5 5 5 5 5 10 10 10 10 5 5 5 Average Capacity 6 | 6 6 5 5 5 5 5 5 5 5 7 10 10 9 5 5 5 Most Carried 10 | 6 8 5 5 5 5 5 5 5 4 10 10 10 10 5 5 5 Average Carried 5 | 2 5 4 4 4 4 4 5 . 1 6 10 10 8 5 5 4 Final Capacity 10 | 8 5 5 5 5 5 5 5 5 5 10 10 10 5 5 5 5 Final Carried 10 | 6 5 5 5 5 5 5 5 1 4 10 10 10 5 5 5 5 Class Distribution -------------------- 50% | Mutant 39% | Sprinter 8% | Infiltrator-Sprinter Dominant Class ---------------- Sprinter | -10/Materials Sprinter | -10/Mines Sprinter | -10/Exiles Sprinter | -9/Mines Sprinter | -8/Materials Infiltrator-Sprinter | -7/Factory Sprinter | -7/Storage Mutant | -6/Factory Mutant | -6/DSF Mutant | -5/Factory Mutant | -5/Upper Caves Mutant | -5/Upper Caves Sprinter | -4/Factory Mutant | -4/Garrison Mutant | -4/Factory Mutant | -4/DSF Resources | -11 -10 -10 -10 -9 -8 -7 -7 -6 -6 -5 -5 -5 -4 -4 -4 -4 ----------- Run | Yrd Mat Min Exi Min Mat Fac Sto Fac DSF Fac Upp Upp Fac Gar Fac DSF Matter Collected 2276 | 232 . 138 . 10 . . 168 . 5 497 774 . 332 . . 120 Remotely . | . . . . . . . . . . . . . . . . . Salvage Created 1644 | . . . . . . . . . 74 210 574 . 522 . . 264 Parts 69 | . . . . . . . . . 10 14 15 . 26 . . 4 Haulers Intercepted . | . . . . . . . . . . . . . . . . . Recyclers Shooed . | . . . . . . . . . . . . . . . . . Parts Field Recycled . | . . . . . . . . . . . . . . . . . Retrieved Matter . | . . . . . . . . . . . . . . . . . Parts Self-Destructed 16 | . . . . . . . . . . . 16 . . . . . Prevented 5 | . . . . . . . . . . . 5 . . . . . Parts Restored . | . . . . . . . . . . . . . . . . . Kills | -11 -10 -10 -10 -9 -8 -7 -7 -6 -6 -5 -5 -5 -4 -4 -4 -4 ------- Run | Yrd Mat Min Exi Min Mat Fac Sto Fac DSF Fac Upp Upp Fac Gar Fac DSF Combat Hostiles Destroyed 25 | . . . . . . . . . 3 4 8 . 7 . . 3 Melee 2 | . . . . . . . . . . 2 . . . . . . Guns 14 | . . . . . . . . . 3 . 4 . 7 . . . Cannons 7 | . . . . . . . . . . 2 4 . . . . 1 AOE 1 | . . . . . . . . . . . . . . . . 1 Classes Destroyed 14 | . . . . . . . . . 1 5 3 . 4 . . 1 Worker 1 | . . . . . . . . . . . . . 1 . . . Tunneler 1 | . . . . . . . . . . 1 . . . . . . Recycler 1 | . . . . . . . . . . . . . 1 . . . Mechanic 1 | . . . . . . . . . . . . . 1 . . . Watcher 1 | . . . . . . . . . . 1 . . . . . . Swarmer 5 | . . . . . . . . . . . . . 5 . . . Cutter 3 | . . . . . . . . . 3 . . . . . . . Grunt 6 | . . . . . . . . . . 1 5 . . . . . Brawler 1 | . . . . . . . . . . . 1 . . . . . Duelist 1 | . . . . . . . . . . . 1 . . . . . Sentry 2 | . . . . . . . . . . . 1 . 1 . . . Specialist 3 | . . . . . . . . . . . . . . . . 3 Programmer 3 | . . . . . . . . . . 2 . . 1 . . . Behemoth 1 | . . . . . . . . . . 1 . . . . . . Best Kill Streak 4 | . . . . . . . . . 3 2 4 . 3 . . 2 Combat Bots Only 4 | . . . . . . . . . 3 2 4 . 3 . . 2 Max Kills in Single Turn 2 | . . . . . . . . . 1 1 1 . 2 . . 1 Gunslinging . | . . . . . . . . . . . . . . . . . Exploded 1 | . . . . . . . . . . . . . . . . 1 Melee 1 | . . . . . . . . . . 1 . . . . . . Uniques/NPCs Destroyed . | . . . . . . . . . . . . . . . . . Combat | -11 -10 -10 -10 -9 -8 -7 -7 -6 -6 -5 -5 -5 -4 -4 -4 -4 -------- Run | Yrd Mat Min Exi Min Mat Fac Sto Fac DSF Fac Upp Upp Fac Gar Fac DSF Hostile Shots Fired 994 | . . . . . 78 42 17 . 52 33 17 6 97 10 . 642 Missed 462 | . . . . . 43 26 12 . 26 12 9 5 46 4 . 279 Hits 532 | . . . . . 35 16 5 . 26 21 8 1 51 6 . 363 Melee 7 | . . . . . . . 1 . 6 . . . . . . . Projectile 525 | . . . . . 35 16 4 . 20 21 8 1 51 6 . 363 AOE 6 | . . . . . . . 3 . 2 . . . 1 . . . Critical Strikes 18 | . . . . . . . . . 2 . . 1 3 2 . 10 Actively Blocked 12 | . . . . . . . . . 2 . . . . . . 10 Damage Taken 7992 | . . . . . 351 101 157 . 547 450 166 21 991 136 . 5072 Core 1523 | . . . . . 236 44 . . 71 18 . . 299 136 . 719 Absorbed by Shields 281 | . . . . . . 24 14 . 22 20 . . 117 . . 84 Reduced by Siege Mode 211 | . . . . . . . . . . . 10 . . . . 201 Redirected to Shielding 121 | . . . . . 26 14 54 . 27 . . . . . . . Ignored by Resistances 38 | . . . . . . . . . . 38 . . . . . . Regen/Repaired (Parts) 49 | . . . . . . . . . . 49 . . . . . . Core Remaining (%) 89 | 100 . . . 100 57 . 93 . 91 . . 98 . . . . Volleys Fired 199 | . . . . . . 1 7 . 23 37 44 3 58 . . 26 Largest 2 | . . . . . . 1 1 . 2 1 2 1 1 . . 2 Hottest 170 | . . . . . . 5 5 . 60 47 94 47 35 . . 170 Shots Fired 215 | . . . . . . 1 7 . 24 37 51 3 58 . . 34 Gun 115 | . . . . . . . . . 22 2 31 2 58 . . . Cannon 86 | . . . . . . . . . . 35 20 1 . . . 30 Launcher 5 | . . . . . . . . . 1 . . . . . . 4 Special 9 | . . . . . . 1 7 . 1 . . . . . . . Kinetic 149 | . . . . . . . . . . 37 51 3 58 . . . Thermal 16 | . . . . . . . . . . . . . . . . 16 Explosive 5 | . . . . . . . . . 1 . . . . . . 4 Electromagnetic 36 | . . . . . . . . . 22 . . . . . . 14 Robot Hit Streak 12 | . . . . . . 1 6 . 4 9 7 2 12 . . 8 Robot Miss Streak 5 | . . . . . . . 1 . 3 5 4 2 5 . . 4 Penetration Max 1 | . . . . . . . . . . . 1 . 1 . . . Secondary Targets . | . . . . . . . . . . . . . . . . . Shots Hit Robots 197 | . 8 3 7 4 1 16 5 . 13 52 28 1 37 . . 22 Core Hits 68 | . . . . . . . . . 7 11 17 . 19 . . 14 Critical Kills 10 | . . . . . . . . . . . 4 . 6 . . . Critical Parts Destroyed 10 | . . . . . . . . . . 1 4 . 5 . . . Critical Strikes 22 | . . . . . . . . . 1 2 8 . 11 . . . Destroy 20 | . . . . . . . . . . 1 8 . 11 . . . Corrupt 1 | . . . . . . . . . 1 . . . . . . . Impale 1 | . . . . . . . . . . 1 . . . . . . Melee Attacks 88 | . 8 3 7 4 1 15 . . . 33 2 . 15 . . . Impact . | . . . . . . . . . . . . . . . . . Slashing . | . . . . . . . . . . . . . . . . . Piercing 25 | . . . . . . . . . . 14 1 . 10 . . . Sneak Attacks 62 | . 8 3 6 4 . 14 . . . 20 1 . 6 . . . Combat Hostiles . | . . . . . . . . . . . . . . . . . Follow-up Attacks . | . . . . . . . . . . . . . . . . . Damage Inflicted 4079 | . . . . . . . . . 265 1192 717 41 456 . . 1408 Guns 708 | . . . . . . . . . 233 22 144 . 309 . . . Cannons 2068 | . . . . . . . . . 15 873 496 41 . . . 643 Explosions 785 | . . . . . . . . . 17 . . . 3 . . 765 Melee 518 | . . . . . . . . . . 297 77 . 144 . . . Ramming . | . . . . . . . . . . . . . . . . . Kinetic 1885 | . . . . . . . . . . 895 640 41 309 . . . Thermal 370 | . . . . . . . . . . . . . 3 . . 367 Explosive 782 | . . . . . . . . . 17 . . . . . . 765 Electromagnetic 509 | . . . . . . . . . 233 . . . . . . 276 Impact 15 | . . . . . . . . . 15 . . . . . . . Slashing . | . . . . . . . . . . . . . . . . . Piercing 518 | . . . . . . . . . . 297 77 . 144 . . . Highest Corruption 2 | . . . . . . . . . . 1 1 2 1 1 1 1 Average Corruption 1 | . . . . . . . . . . 1 1 1 1 1 1 1 Corruption Purged . | . . . . . . . . . . . . . . . . . Corruption Blocked . | . . . . . . . . . . . . . . . . . Effects 7 | . . . . . . . . . . 1 4 . . 1 . 1 Message Errors 1 | . . . . . . . . . . . 1 . . . . . Matter Fused 4 | . . . . . . . . . . 1 2 . . . . 1 Energy Discharges 1 | . . . . . . . . . . . 1 . . . . . Data Loss (minor) 1 | . . . . . . . . . . . . . . 1 . . Overload Shots . | . . . . . . . . . . . . . . . . . Overflow Damage 133 | . . . . . . . . . . 127 . . . . . 6 Projectiles . | . . . . . . . . . . . . . . . . . Explosions 6 | . . . . . . . . . . . . . . . . 6 Melee 127 | . . . . . . . . . . 127 . . . . . . Knockbacks 3 | . . . . . . . . . . 1 2 . . . . . Impact . | . . . . . . . . . . . . . . . . . Kinetic 3 | . . . . . . . . . . 1 2 . . . . . Secondary . | . . . . . . . . . . . . . . . . . Self-Inflicted Damage 126 | . . . . . . . . . . . . . . . . 126 Shots 3 | . . . . . . . . . . . . . . . . 3 Rammed . | . . . . . . . . . . . . . . . . . Targets Rammed . | . . . . . . . . . . . . . . . . . Kicked . | . . . . . . . . . . . . . . . . . Crushed . | . . . . . . . . . . . . . . . . . Highest Temperature 251 | . . . . . . . . . . 214 1 . . 21 . 251 Average Temperature 102 | . . . . . . . . . . 92 1 . . 21 . 135 Received Heat Transfer 787 | . . . . . 54 34 6 . 39 30 54 . 42 106 . 422 Siege Activations 2 | . . . . . . . . . . . 1 . . . . 1 Total Turns 33 | . . . . . . . . . . . 17 . . . . 16 Longest Duration 17 | . . . . . . . . . . . 17 . . . . 16 Martial Activations . | . . . . . . . . . . . . . . . . . Shielding Activations . | . . . . . . . . . . . . . . . . . Robots Disrupted . | . . . . . . . . . . . . . . . . . Combat Hostiles . | . . . . . . . . . . . . . . . . . Robots Corrupted 1 | . . . . . . . . . . . . . . . . 1 Combat Hostiles 1 | . . . . . . . . . . . . . . . . 1 Parts Fried . | . . . . . . . . . . . . . . . . . Impact Corruptions . | . . . . . . . . . . . . . . . . . Robots Melted . | . . . . . . . . . . . . . . . . . Combat Hostiles . | . . . . . . . . . . . . . . . . . Parts Melted . | . . . . . . . . . . . . . . . . . Heat Transferred 494 | . . . . . . . . . . . . . 50 . . 444 Parts Sabotaged . | . . . . . . . . . . . . . . . . . Parts Stolen . | . . . . . . . . . . . . . . . . . Parts Stripped . | . . . . . . . . . . . . . . . . . Power Chain Reactions . | . . . . . . . . . . . . . . . . . Alert | -11 -10 -10 -10 -9 -8 -7 -7 -6 -6 -5 -5 -5 -4 -4 -4 -4 ------- Run | Yrd Mat Min Exi Min Mat Fac Sto Fac DSF Fac Upp Upp Fac Gar Fac DSF Maximum Alert Level 2 | . . . . . 1 . 1 . . . . . 1 1 . 2 Low Security (%) 83 | 100 100 100 . 100 91 100 99 100 100 100 . . 56 . 100 28 Level 1 16 | . . . . . 8 . . . . . . . 43 100 . 68 Level 2 . | . . . . . . . . . . . . . . . . 3 Level 3 . | . . . . . . . . . . . . . . . . . Level 4 . | . . . . . . . . . . . . . . . . . Level 5 . | . . . . . . . . . . . . . . . . . High Security . | . . . . . . . . . . . . . . . . . Max Security . | . . . . . . . . . . . . . . . . . Peak Influence 401 | . 8 . . 45 219 94 233 44 62 56 . . 390 393 195 401 Initial 229 | . . . . . . 94 6 44 2 24 . . . 229 195 140 Average 69 | . . . . 7 61 19 15 25 34 17 . . 192 259 195 233 Influence Increases 2480 | . 8 . . 45 275 71 352 . 85 306 185 . 573 184 5 391 Destroy 0b10 Robot/C 800 | . . . . . . . 140 . 60 140 160 . 140 20 . 140 Destroy 0b10 Robot/NC 35 | . . . . . . . . . . 10 5 . 15 . . 5 Destroy Leader 132 | . . . . . . . 20 . 10 22 20 . 20 . . 40 Allied During Kill 123 | . . . . . . . 101 . . 10 . . . 2 . 10 Trap Triggered on 0b10 50 | . . . . . . . . . . . . . 50 . . . Successful Hack 166 | . 8 . . . 20 41 16 . . 40 . . 8 28 5 . Disable Machine 75 | . . . . . . . . . . . . . 75 . . . Anti-Garrison Action 50 | . . . . . . . . . . . . . . 50 . . Destroy Structure 224 | . . . . . . . . . . 24 . . 70 24 . 106 Lose Combat Pursuer 825 | . . . . 45 255 30 75 . 15 60 . . 195 60 . 90 Influence Decreases 2119 | . 8 . . 45 66 265 269 94 42 321 217 . 245 139 178 230 Entered New Map 553 | . . . . . . 115 9 54 2 23 13 . . 99 178 60 Time Decay 949 | . 8 . . 45 46 149 40 40 . 242 204 . 175 . . . Lost Part 300 | . . . . . 10 . 20 . 30 . . . 70 . . 170 Lost Ally 317 | . . . . . 10 1 200 . 10 56 . . . 40 . . Squads Dispatched 23 | . 1 . . . . 2 2 . 2 8 . . 4 . . 4 Investigation 5 | . 1 . . . . . . . . 4 . . . . . . Extermination 5 | . . . . . . 2 . . . 2 . . 1 . . . Reinforcement 11 | . . . . . . . . . 2 2 . . 3 . . 4 Assault 2 | . . . . . . . 2 . . . . . . . . . Garrison . | . . . . . . . . . . . . . . . . . Intercept . | . . . . . . . . . . . . . . . . . Searches Triggered . | . . . . . . . . . . . . . . . . . Construction Impeded 2 | . . . . . . . . . . . . . 2 . . . Haulers Reinforced . | . . . . . . . . . . . . . . . . . Active Scanning Responses . | . . . . . . . . . . . . . . . . . Cargo Convoy Interrupts . | . . . . . . . . . . . . . . . . . Stealth | -11 -10 -10 -10 -9 -8 -7 -7 -6 -6 -5 -5 -5 -4 -4 -4 -4 --------- Run | Yrd Mat Min Exi Min Mat Fac Sto Fac DSF Fac Upp Upp Fac Gar Fac DSF Distress Signals 4 | . 2 . . . . 1 . . . . . . 1 . . . Communications Jammed . | . . . . . . . . . . . . . . . . . Distress Signals . | . . . . . . . . . . . . . . . . . Times Spotted 152 | . . 2 . 1 32 10 21 . 8 16 8 1 27 7 . 19 Peak Tracking Total 20 | . . 15 . 3 20 5 15 . 5 5 4 1 6 6 . 8 Tactical Retreats 26 | . . . . 1 4 2 2 . 1 3 . . 7 1 . 5 Traps | -11 -10 -10 -10 -9 -8 -7 -7 -6 -6 -5 -5 -5 -4 -4 -4 -4 ------- Run | Yrd Mat Min Exi Min Mat Fac Sto Fac DSF Fac Upp Upp Fac Gar Fac DSF Traps Triggered 8 | . . . . . . . . . 5 2 . . . . . 1 Indirectly . | . . . . . . . . . . . . . . . . . Trap Hack Attempts 52 | . . . . . . 27 . . . . . . 25 . . . Triggered . | . . . . . . . . . . . . . . . . . Disarmed 2 | . . . . . . 2 . . . . . . . . . . Reprogrammed 9 | . . . . . . 4 . . . . . . 5 . . . Reused 5 | . . . . . . . . . . . . . 5 . . . Traps Extracted 18 | . . . . . . 4 . . . . 7 . 7 . . . Installed 13 | . . . . . . . . . . . 5 . 8 . . . Triggered 5 | . . . . . . . . . . . . . 5 . . . Most Traps Carried 5 | . . . . . . 4 1 1 1 1 1 1 5 . . . Machines | -11 -10 -10 -10 -9 -8 -7 -7 -6 -6 -5 -5 -5 -4 -4 -4 -4 ---------- Run | Yrd Mat Min Exi Min Mat Fac Sto Fac DSF Fac Upp Upp Fac Gar Fac DSF Machines Disabled 7 | . . . . . . . . . . . . . 5 2 . . Max in Single Turn 5 | . . . . . . . . . . . . . 5 . . . Machines Repaired . | . . . . . . . . . . . . . . . . . Machines Dismantled . | . . . . . . . . . . . . . . . . . Machines Sabotaged . | . . . . . . . . . . . . . . . . . Overloaded Fab Kills . | . . . . . . . . . . . . . . . . . Hacking | -11 -10 -10 -10 -9 -8 -7 -7 -6 -6 -5 -5 -5 -4 -4 -4 -4 --------- Run | Yrd Mat Min Exi Min Mat Fac Sto Fac DSF Fac Upp Upp Fac Gar Fac DSF Machines Accessed 52 | . 4 . 5 . 4 12 4 2 . 14 . . 4 2 1 . Terminals 34 | . 3 . . . 4 9 3 2 . 8 . . 2 2 1 . Fabricators 2 | . . . . . . 1 . . . 1 . . . . . . Repair Stations 3 | . 1 . . . . . . . . 2 . . . . . . Recycling Units 6 | . . . . . . 2 1 . . 3 . . . . . . Scanalyzers 1 | . . . . . . . . . . . . . 1 . . . Garrison Access 1 | . . . . . . . . . . . . . 1 . . . Total Hacks 153 | . 9 . 50 . 13 24 8 5 . 32 . . 6 4 2 . Successful 102 | . 4 . 50 . 6 9 6 3 . 17 . . 4 2 1 . Failed 51 | . 5 . . . 7 15 2 2 . 15 . . 2 2 1 . Catastrophic 10 | . . . . . 1 6 1 . . 2 . . . . . . Database Lockouts . | . . . . . . . . . . . . . . . . . Manual 54 | . 1 . 1 . 13 14 3 2 . 14 . . 5 1 . . Terminals 78 | . 8 . . . 13 19 6 5 . 17 . . 4 4 2 . Fabricators 5 | . . . . . . 2 . . . 3 . . . . . . Repair Stations 5 | . 1 . . . . . . . . 4 . . . . . . Recycling Units 13 | . . . . . . 3 2 . . 8 . . . . . . Scanalyzers 1 | . . . . . . . . . . . . . 1 . . . Garrison Access 1 | . . . . . . . . . . . . . 1 . . . Terminal Hacks 73 | . 3 . 50 . 2 4 3 3 . 3 . . 2 2 1 . Record 53 | . 1 . 49 . . . . 2 . 1 . . . . . . Robot Analysis 1 | . 1 . . . . . . . . . . . . . . . Open DSF 5 | . . . . . . 2 . 1 . 1 . . . . 1 . Branch Access Points 2 | . . . . . . . 1 . . . . . 1 . . . Emergency Access Points 1 | . . . . . . . . . . . . . . 1 . . Terminal Index 2 | . . . . . 1 . . . . . . . 1 . . . Locate Traps 5 | . . . . . . 2 2 . . 1 . . . . . . Hauler Manifests 1 | . 1 . . . . . . . . . . . . . . . Zone Layout 1 | . . . . . 1 . . . . . . . . . . . Garrison Registry 1 | . . . . . . . . . . . . . . 1 . . Proto ID Catalog 1 | . . . 1 . . . . . . . . . . . . . Fabricator Hacks 1 | . . . . . . . . . . 1 . . . . . . Network Status 1 | . . . . . . . . . . 1 . . . . . . Repair Station Hacks 3 | . . . . . . . . . . 3 . . . . . . Scan Component 1 | . . . . . . . . . . 1 . . . . . . Repair 1 | . . . . . . . . . . 1 . . . . . . Refit 1 | . . . . . . . . . . 1 . . . . . . Recycling Unit Hacks 11 | . . . . . . 2 2 . . 7 . . . . . . Process 1 | . . . . . . . . . . 1 . . . . . . Report Inventory 7 | . . . . . . 2 1 . . 4 . . . . . . Retrieve Matter 2 | . . . . . . . . . . 2 . . . . . . Retrieve Components 1 | . . . . . . . 1 . . . . . . . . . Scanalyzer . | . . . . . . . . . . . . . . . . . Garrison Access Hacks 1 | . . . . . . . . . . . . . 1 . . . Unlock Access 1 | . . . . . . . . . . . . . 1 . . . Unauthorized Hacks 13 | . 1 . . . 4 3 1 . . 3 . . 1 . . . Terminals 11 | . . . . . 4 3 1 . . 2 . . 1 . . . Assimilate 6 | . . . . . 1 3 . . . 2 . . . . . . Botnet 5 | . . . . . 3 . 1 . . . . . 1 . . . Fabricators 1 | . . . . . . . . . . 1 . . . . . . Fabnet 1 | . . . . . . . . . . 1 . . . . . . Repair Stations 1 | . 1 . . . . . . . . . . . . . . . Mechanics 1 | . 1 . . . . . . . . . . . . . . . Recycling Units . | . . . . . . . . . . . . . . . . . Scanalyzers . | . . . . . . . . . . . . . . . . . Garrison Access . | . . . . . . . . . . . . . . . . . Data Cores Recovered . | . . . . . . . . . . . . . . . . . Used . | . . . . . . . . . . . . . . . . . Hacking Detections 37 | . 3 . . . 3 10 2 1 . 13 . . 3 1 1 . Full Trace Events 4 | . . . . . . . . . . 3 . . . 1 . . Feedback Events . | . . . . . . . . . . . . . . . . . Feedback Blocked . | . . . . . . . . . . . . . . . . . Robot Schematics Acquired . | . . . . . . . . . . . . . . . . . Robots Built . | . . . . . . . . . . . . . . . . . Authchips . | . . . . . . . . . . . . . . . . . Time . | . . . . . . . . . . . . . . . . . Total Robot Build Rating . | . . . . . . . . . . . . . . . . . Part Schematics Acquired . | . . . . . . . . . . . . . . . . . Parts Built . | . . . . . . . . . . . . . . . . . Authchips . | . . . . . . . . . . . . . . . . . Time . | . . . . . . . . . . . . . . . . . Total Part Build Rating . | . . . . . . . . . . . . . . . . . Part Studies Acquired . | . . . . . . . . . . . . . . . . . Parts Repaired 1 | . . . . . . . . . . 1 . . . . . . Time 22 | . . . . . . . . . . 22 . . . . . . Parts Recycled . | . . . . . . . . . . . . . . . . . Recycled Matter 45 | . . . . . . . . . . 45 . . . . . . Retrieved Matter 45 | . . . . . . . . . . 45 . . . . . . Retrieved Components 3 | . . . . . . . 3 . . . . . . . . . Parts Scanalyzed . | . . . . . . . . . . . . . . . . . Part Schematics Acquired . | . . . . . . . . . . . . . . . . . Parts Damaged . | . . . . . . . . . . . . . . . . . Bothacking | -11 -10 -10 -10 -9 -8 -7 -7 -6 -6 -5 -5 -5 -4 -4 -4 -4 ------------ Run | Yrd Mat Min Exi Min Mat Fac Sto Fac DSF Fac Upp Upp Fac Gar Fac DSF Used RIF Installer 1 | . . . . . . . . . . . . . . 1 . . Robots Hacked 42 | . 3 2 5 2 1 10 1 . . 10 1 . 3 3 . 1 Non-combat 34 | . 3 1 3 2 . 10 1 . . 10 1 . 3 . . . Combat 8 | . . 1 2 . 1 . . . . . . . . 3 . 1 Robot Hacks Applied 51 | . 6 2 5 3 1 14 1 . . 13 1 . 5 . . . parse_system 27 | . 4 2 5 3 1 5 1 . . 5 1 . . . . . no_distress 3 | . 1 . . . . . . . . 1 . . 1 . . . find_chute 11 | . . . . . . 5 . . . 4 . . 2 . . . find_fabricator 3 | . . . . . . 2 . . . 1 . . . . . . find_dsf 1 | . . . . . . 1 . . . . . . . . . . find_recycling 5 | . 1 . . . . 1 . . . 1 . . 2 . . . find_station 1 | . . . . . . . . . . 1 . . . . . . Relay Couplers Released . | . . . . . . . . . . . . . . . . . Fabnet Peak Effective % 3 | . . . . . . . . . . . . . 3 3 3 3 Autooverrided 4 | . . . . . . . . . . . . . . 3 . 1 Robots Rewired 3 | . . . . . . . . . . 3 . . . . . . Allies Hacked . | . . . . . . . . . . . . . . . . . Hacks Repelled . | . . . . . . . . . . . . . . . . . Allies | -11 -10 -10 -10 -9 -8 -7 -7 -6 -6 -5 -5 -5 -4 -4 -4 -4 -------- Run | Yrd Mat Min Exi Min Mat Fac Sto Fac DSF Fac Upp Upp Fac Gar Fac DSF Total Allies 24 | . . . . . 1 3 12 . . 4 . . . 3 . 1 Largest Group 12 | . . . . . 1 2 12 1 . 3 . . . 2 . 1 Highest-Rated Group 235 | . . . . . 26 52 235 16 . 122 . . . 96 . 68 Highest-Rated Ally 68 | . . . . . 26 26 31 16 . 64 . . . 49 . 68 Total Orders 12 | . . . . . . 4 . 2 1 5 . . . . . . STAY 3 | . . . . . . 3 . . . . . . . . . . FOLLOW 1 | . . . . . . 1 . . . . . . . . . . GUARD 3 | . . . . . . . . . . 3 . . . . . . AID 1 | . . . . . . . . . . 1 . . . . . . EXPLORE 3 | . . . . . . . . 1 1 1 . . . . . . RETURN 1 | . . . . . . . . 1 . . . . . . . . Ally Attacks 98 | . . . . . . . 64 . . 23 . . . 6 . 5 Total Damage 1966 | . . . . . . . 874 . . 360 . . . 365 . 367 Kills 16 | . . . . . . . 8 . . 3 . . . 1 . 4 Allies Corrupted . | . . . . . . . . . . . . . . . . . Allies Melted . | . . . . . . . . . . . . . . . . . Intel | -11 -10 -10 -10 -9 -8 -7 -7 -6 -6 -5 -5 -5 -4 -4 -4 -4 ------- Run | Yrd Mat Min Exi Min Mat Fac Sto Fac DSF Fac Upp Upp Fac Gar Fac DSF Active Infowar (turns) 1938 | . . . . 122 149 424 . . . 269 499 20 455 . . . Optics 1243 | . . . . . . . . . . 269 499 20 455 . . . Structural 695 | . . . . 122 149 424 . . . . . . . . . . ECM 401 | . . . . . . 401 . . . . . . . . . . Robot Analysis Total 1 | . 1 . . . . . . . . . . . . . . . Derelict Logs Recovered 3 | . . . . 1 . . . . . . 2 . . . . . Drone Launches 4 | . . . . . . . . 1 2 1 . . . . . . Drone Recoveries 2 | . . . . . . . . 1 1 . . . . . . . Exploration | -11 -10 -10 -10 -9 -8 -7 -7 -6 -6 -5 -5 -5 -4 -4 -4 -4 ------------- Run | Yrd Mat Min Exi Min Mat Fac Sto Fac DSF Fac Upp Upp Fac Gar Fac DSF Turns Passed 4445 | 85 178 107 178 271 149 638 314 92 101 841 499 20 480 170 2 320 Spaces Moved 6751 | 61 252 66 515 568 412 1037 256 92 70 1314 1006 34 716 164 3 185 Core 240 | 4 . . . . . . . . . . . . 50 164 3 19 Treads 2 | . . . . . . . . . . . 2 . . . . . Legs 274 | 57 51 . . . . . . . . . . . . . . 166 Wheels . | . . . . . . . . . . . . . . . . . Hover . | . . . . . . . . . . . . . . . . . Flight 6235 | . 201 66 515 568 412 1037 256 92 70 1314 1004 34 666 . . . Fastest Speed 28 | 50 32 32 32 32 32 29 29 32 50 29 34 34 28 50 50 50 Average Speed 36 | 115 49 32 32 32 32 32 29 47 50 34 34 34 30 50 50 97 Slowest Speed 160 | 120 120 32 32 32 32 50 32 50 50 35 160 34 50 50 50 120 Overloaded Moves 8 | . . . . . . . . . . 8 . . . . . . Propulsion Burnouts . | . . . . . . . . . . . . . . . . . Robots Hopped 55 | . . . . 6 24 4 12 . 1 7 . . 1 . . . Potential Cave-ins 1 | . . . . . . . . . . . . . 1 . . . Cave-ins Triggered . | . . . . . . . . . . . . . . . . . Exploration Rate (%) 44 | 4 43 26 93 97 39 28 44 4 63 33 83 12 14 37 . 96 Regions Visited 16 Branch Regions 6 Pre-discovered Areas 2 | . . . 1 . . . . . . . 1 . . . . . Known Exits Taken 3 | . . . . . . . . 1 . . . . 1 . 1 . Unknown Exits Taken 11 | 1 1 1 1 1 1 1 1 . . 1 1 1 . . . . Scrap Searched 7 | . . 1 . 3 . . . . . . 3 . . . . . Spaces Dug 13 | . . . . . . . . . . 5 . . 8 . . . Terrain Destroyed 123 | . . . . . . . . . . 12 15 . 34 . . 62 Melee 13 | . . . . . . . . . . 5 . . 8 . . . Projectile 22 | . . . . . . . . . . 7 15 . . . . . AOE 87 | . . . . . . . . . . . . . 25 . . 62 Terrain Rammed . | . . . . . . . . . . . . . . . . . Walls Destroyed . | . . . . . . . . . . . . . . . . . Machines Disabled . | . . . . . . . . . . . . . . . . . Actions | -11 -10 -10 -10 -9 -8 -7 -7 -6 -6 -5 -5 -5 -4 -4 -4 -4 --------- Run | Yrd Mat Min Exi Min Mat Fac Sto Fac DSF Fac Upp Upp Fac Gar Fac DSF Total 8362 | 72 306 150 526 649 403 1330 479 139 111 1622 1103 38 899 250 2 283 Wait 1041 | . 7 77 . 79 12 222 229 39 1 184 32 2 46 88 . 23 Move 6632 | 60 251 65 514 555 368 1028 233 91 67 1299 1005 33 714 162 2 185 Hop 48 | . . . . 6 19 4 10 . 1 7 . . 1 . . . Pick Up 55 | 6 12 . 1 1 1 5 . 1 3 14 1 . 4 . . 6 Fast Attach 65 | 6 5 1 . 1 1 10 . 2 . 14 3 . 2 . . 20 Attach 25 | . 4 . . . . 3 . 2 . 5 . . 5 . . 6 Detach 18 | . 4 1 . 1 . 4 . . . 4 . . 4 . . . Swap 33 | . . 1 . . . 2 . 1 1 9 7 . 8 . . 4 Drop 74 | . 15 2 4 2 1 9 . 3 . 16 4 . 9 . . 9 Fire 199 | . . . . . . 1 7 . 23 37 44 3 58 . . 26 Melee 88 | . 8 3 7 4 1 15 . . . 33 2 . 15 . . . Ram . | . . . . . . . . . . . . . . . . . Kick . | . . . . . . . . . . . . . . . . . Crush . | . . . . . . . . . . . . . . . . . Escape Stasis 15 | . . . . . . . . . 15 . . . . . . . Rewire 4 | . . . . . . . . . . . . . . . . 4 Trap 65 | . . . . . . 27 . . . . 5 . 33 . . . Miscellaneous . | . . . . . . . . . . . . . . . . . Route ------- -11/Scrapyard -10/Materials (discovered 2 exits: [*Mat] / [*Min]) -10/Mines (discovered 2 exits: [*Mat] / *Exi) -10/Exiles -9/Mines (discovered 2 exits: *Mat x2) -8/Materials -7/Factory (discovered 2 exits: *Fac / *Sto) -7/Storage (discovered 2 exits: *Fac / Rec) -6/Factory -6/DSF -5/Factory -5/Upper Caves -5/Upper Caves -4/Factory (discovered 3 exits: Upp x2 / Gar) -4/Garrison (discovered 4 exits: *Fac x4) -4/Factory -4/DSF (discovered 1 exit: [*Res]) History --------- Turn | Location | Event 5 | -11/Scrapyard | Discovered new exit (range 16) 86 | -11/Scrapyard | Entered Materials 207 | -10/Materials | Discovered new exit (range 4) 243 | -10/Materials | Met 8R-AWN 246 | -10/Materials | Discovered new exit (range 9) 264 | -10/Materials | Entered Mines 265 | -10/Mines | Followed 8R-AWN into the Mines 270 | -10/Mines | Assembled infested the area 275 | -10/Mines | Assisted by a Guerilla fighting off Assembled 353 | -10/Mines | Discovered new exit (range 8) 367 | -10/Mines | Discovered new exit (range 5) 371 | -10/Mines | Entered Exiles 379 | -10/Exiles | Welcomed by 8R-AWN 384 | -10/Exiles | Met EX-HEX 417 | -10/Exiles | Met EX-DEC 432 | -10/Exiles | Visited The Gauntlet 462 | -10/Exiles | Build established: Sprinter 475 | -10/Exiles | Learned location of Zion (-7) 489 | -10/Exiles | Met EX-BIN 494 | -10/Exiles | Aligned with FarCom system 495 | -10/Exiles | Given EX-Vault access code 508 | -10/Exiles | Opened EX-Vault 512 | -10/Exiles | Found Flying Fortress v7 520 | -10/Exiles | Warned to stay clear of 0b10 Research branches 546 | -10/Exiles | Discovered new exit (range 12) 549 | -10/Exiles | Left Exiles lab with Flying Fortress v7 549 | -10/Exiles | Entered Mines 718 | -9/Mines | Discovered new exit (range 8) 724 | -9/Mines | Learned Materials emergency access door positions 734 | -9/Mines | Discovered new exit (range 9) 820 | -9/Mines | Entered Materials 820 | -8/Materials | Evolved 4 slots: Power x1, Propulsion x2, Utility x1 966 | -8/Materials | Discovered new exit (range 10) 969 | -8/Materials | Entered Factory 969 | -7/Factory | Evolved 2 slots: Utility x2 1334 | -7/Factory | Build established: Infiltrator-Sprinter 1539 | -7/Factory | Discovered new exit (range 14) 1574 | -7/Factory | Discovered new exit (range 8) 1607 | -7/Factory | Entered Storage 1698 | -7/Storage | Build established: Sprinter 1881 | -7/Storage | Identified exit to Recycling 1884 | -7/Storage | Met a pair of Derelict thieves 1886 | -7/Storage | Discovered new exit (range 15) 1895 | -7/Storage | Assisted by bots powering up and referring to "LRC-V3" 1921 | -7/Storage | Entered Factory 1921 | -6/Factory | Accompanied by 1 ally 1921 | -6/Factory | Evolved 2 slots: Utility x2 1952 | -6/Factory | Lost 11 allies 2013 | -6/Factory | Identified exit to DSF 2013 | -6/Factory | Entered DSF 2031 | -6/DSF | Additional patrols routed to DSF 2098 | -6/DSF | Discovered new exit (range 15) 2114 | -6/DSF | Entered Factory 2114 | -5/Factory | Evolved 2 slots: Propulsion x2 2269 | -5/Factory | Build established: Mutant 2711 | -5/Factory | Discovered new exit (range 9) 2719 | -5/Factory | Spotted B-75 Beast 2747 | -5/Factory | Destroyed B-75 Beast 2765 | -5/Factory | Found Imp. Powered Armor 2766 | -5/Factory | Found Imp. Powered Armor 2846 | -5/Factory | Repaired Kinecellerator 2955 | -5/Factory | Entered Upper Caves 2977 | -5/Upper Caves | Found DCF Scrap (15 items) 3112 | -5/Upper Caves | Learned location of Armory (-3) 3234 | -5/Upper Caves | Learned 4 Factory zone layouts 3270 | -5/Upper Caves | Discovered new exit (range 6) 3275 | -5/Upper Caves | Encountered a Warlord checkpoint 3295 | -5/Upper Caves | Attracted the attention of an 0b10 checkpoint 3454 | -5/Upper Caves | Entered another Upper Caves area 3460 | -5/Upper Caves | Discovered new exit (range 15) 3474 | -5/Upper Caves | Entered Factory 3474 | -4/Factory | Evolved 2 slots: Propulsion x2 3776 | -4/Factory | Build established: Sprinter 3917 | -4/Factory | Spotted B-86 Titan 3929 | -4/Factory | Released all parts (9) 3949 | -4/Factory | Identified exit to Upper Caves 3954 | -4/Factory | Identified exit to Garrison 3954 | -4/Factory | Entered Garrison 3960 | -4/Garrison | Lost 6 parts (5n1u) 4068 | -4/Garrison | Triggered checkpoint 4089 | -4/Garrison | Installed Relay Interface Framework 4100 | -4/Garrison | Discovered new exit (range 8) 4103 | -4/Garrison | Discovered new exit (range 7) 4103 | -4/Garrison | Discovered new exit (range 63) 4103 | -4/Garrison | Discovered new exit (range 108) 4103 | -4/Garrison | Discovered new exit (range 85) 4124 | -4/Garrison | Entered Factory 4126 | -4/Factory | Identified exit to DSF 4126 | -4/Factory | Entered DSF 4171 | -4/DSF | Discovered new exit (range 11) 4186 | -4/DSF | Additional patrols routed to DSF 4224 | -4/DSF | Build established: Mutant 4330 | -4/DSF | Core integrity fell below 50% 4344 | -4/DSF | Found Fusion Bomb Launcher 4390 | -4/DSF | Lost 10 parts (1p1n6u2w) 4436 | -4/DSF | Released all parts (4) 4437 | -4/DSF | Core integrity fell below 20% 4446 | -4/DSF | Destroyed by X-82 Rainmaker with Heavy Flak Cannon Last Messages --------------- 04402_ Imp. Heavy Siege Treads destroyed. 04403_ G-67 Veteran destroyed. 04411_ Network quickbooting X-77 Beamer, ETC: 5. 04412_ Acquired Lrn. Proton Cannon. 04423_ System corrupted: Matter fused (-7). 04427_ ALERT: Suspicious intruders detected, dispatching Specialist reinforcements to area. 04431_ Slug penetrates Wall. 04431_ Lgt. Antimatter Reactor destroyed. 04432_ Arm. Leg destroyed. 04432_ Slug penetrates Wall. 04435_ Arm. Leg destroyed. 04435_ Myomer Leg destroyed. 04435_ Penetrated by Slug. 04436_ Released Graphene Brace. 04436_ Released Phase Cannon. 04436_ Released Lgt. Antimatter Reactor. 04443_ Knocked back. 04443_ Penetrated by Slug. 04444_ Knocked back. Map ----- +----------------------------------------------------+ | ???????# #??????# % !!#??????? | | ???????# #??????# % !!#??????? | | ???????## ###??????##= ####?????? | | ???????# #??????#=== !# ##???? | | ???????# #?????##= = ! ####?? | | ???????#= #?? ### == ##? | | ??????### ##### ## | | ??????# #?!!! *% ]] | | ?????## ##!!! ! = ]] | | ????##"!! % | | ????# "!! = | | ????###!! | | ??????# "" [[[ % !!! | | ??????# % ## #[[[ # " "!!! | | ??????### ###### ##"%"########## | | ???????#*% **#???#???!! " ==???????# | | ???????# = #??????#!! H ==???????# | | ???????# *#??????#!! =????????# | | ???????##%=###??????### ###??????# | | ???????# #??????#!! !!#??????# | | ???????# #??????#!! !!#??????# | | ???????## ##########!! !!######## | | ??????### ###**#***### #?#]]]# # | | ????###"" ##**#***### ###]]]# # | | ????""""" x h!] | | ??????#""< @ x %* | | ??????#"""""##**# #!!!!! # # ]# | | ??????#"""""#########!!!!! ######## | | ??????####"##???????#########??????? | | ?????????#"????????????????????????? | | ?????????""????????????????????????? | | ???????????????????????????????????? | | ???????????????????????????????????? | | ???????????????????????????????????? | | ???????????????????????????????????? | | ???????????????????????????????????? | | | | | | | | | | | | | | | | | | | | | | | | | | | | | +----------------------------------------------------+ Best States ------------- Heat Dissipation 62 Energy Generation 75 Energy Capacity 490 Matter Stores 550 Matter Capacity 550 Sight Range 22 Terrain Scan Density 10 ECM Strength 1 Power Amplification 120 Additional Mass Support 6 Armor Coverage 625 Resistance: KI 25 Resistance: TH 25 Propulsion Shielding 66 Point Defense Rating 80 Evasion (%) 64 Melee Accuracy 5 Recoil Reduction 4 Kinecelleration 30 Salvage Targeting 1 Offensive Hacking 10 Trap Extractor Capacity 8 Item Schematics ----------------- None Robot Schematics ------------------ None Fabricated ------------ Nothing Repaired ---------- Kinecellerator | 2% | -5/Factory Studied --------- None Alien Tech Used ----------------- None Achievements -------------- Analysis Probe Fitting Room Follow The Leader Hack The Planet I Laugh At Your Crits Immobile And Lovin' It Join The Dark Side Junior Dev Late Bloomer Live, Flee, And Rebuild Metal Spider Not Today, Chutes Recruitment Drive Sprinter Streaker That Tickles Window Shopping Challenges ------------ None Game ------ Seed BehemothFirePenetrator Manual? 0 Play Time 05:36:18 Cumulative 38.4 hours Start 2026.02.20 @ 19:35:06 End 2026.02.21 @ 23:48:51 Sessions 17 Manual Loads 0 Difficulty Rogue Special Mode None Game No. 25 Rogue 25 Adventurer 0 Explorer 0 Win Type - Total 0 Types 0/0/0/0/0/0/0/0/0/0 Lore% 25 Gallery% 25 Achievement% 34 Wizard Run 0 Options --------- Layout 0 ASCII 0 Keyboard 1 Movement Vi Keybinds 0 Fullscreen 1 Font 18/SmallcapsGlow Map View 76x50 Zoom Use 0% Tactical HUD 1 Map Filters NONE Filters NONE Steam 1 RUN: e0813f4f-998e-4b27-960d-cb447e87bccf